fUSD/lending_fUSD_20240915
["ID","MTS","AMOUNT","RATE_DAILY","PERIOD"]
[338212177,1726386683455,-1390.11,0.00014155,2]
[338212178,1726386683465,-1865.48,0.00014155,2]
[338212179,1726386683474,-1240.08,0.00014155,2]
[338212180,1726386683484,-1091.54,0.00014155,2]
[338212181,1726386683493,-986.87,0.00014155,2]
[338212182,1726386683503,-618.57,0.00014155,2]
[338212183,1726386683513,-532.18,0.00014155,2]
[338212184,1726386683523,-2204.89,0.00014155,2]
[338212185,1726386683533,-500.0,0.00014155,2]
[338212186,1726386683542,-1196.34,0.00014155,2]
[338212187,1726386683552,-1877.34,0.00014155,2]
[338212188,1726386683561,-1544.19,0.00014155,2]
[338212189,1726386683571,-1642.31,0.00014155,2]
[338212190,1726386683581,-500.0,0.00014155,2]
[338212191,1726386683591,-2122.82,0.00014155,2]
[338212192,1726386683601,-500.0,0.00014155,2]
[338212193,1726386683611,-1235.92,0.00014155,2]
[338212194,1726386683620,-500.0,0.00014155,2]
[338212195,1726386683629,-1744.99,0.00014155,2]
[338212196,1726386683639,-2206.82,0.00014155,2]
[338212197,1726386683648,-2524.23,0.00014155,2]
[338212198,1726386683657,-500.0,0.00014155,2]
[338212199,1726386683666,-500.0,0.00014155,2]
[338212200,1726386683676,-2100.75,0.00014155,2]
[338212201,1726386683686,-2501.11,0.00014155,2]
[338212202,1726386683695,-846.95,0.00014155,2]
[338212203,1726386683706,-539.57,0.00014155,2]
[338212204,1726386683716,-1470.93,0.00014155,2]
[338212205,1726386683725,-3358.33,0.00014155,2]
[338212206,1726386683734,-561.13,0.00014156,2]
[338212207,1726386683744,-2011.23,0.00014156,2]
[338212208,1726386683753,-2475.01,0.00014156,2]
[338212209,1726386683763,-500.0,0.00014156,2]
[338212210,1726386683772,-677.73,0.00014156,2]
[338212211,1726386683781,-1367.57,0.00014156,2]
[338212212,1726386683791,-1772.7,0.00014156,2]
[338212213,1726386683800,-1342.24,0.00014156,2]
[338212214,1726386683810,-613.39,0.00014156,2]
[338212215,1726386683819,-3121.53,0.00014156,2]
[338212216,1726386683829,-232.4367,0.00014156,2]
[338212217,1726386683838,-232.4367,0.00014156,2]
[338212218,1726386683847,-150.0,0.00014161,2]
[338212219,1726386683857,-150.0,0.00014163,2]
[338212220,1726386683867,-1500.0,0.00014166,2]
[338212221,1726386683877,-150.0,0.00014167,2]
[338212222,1726386683888,-150.0,0.00014168,2]
[338212223,1726386683897,-150.0,0.00014169,2]
[338212224,1726386683908,-150.0,0.0001417,2]
[338212225,1726386683918,-1298.72072069,0.00014172,2]
[338212226,1726386683927,-150.0,0.00014174,2]
[338212227,1726386683936,-150.0,0.00014192,2]
[338212228,1726386683945,-150.0,0.00014192,2]
[338212229,1726386683955,-150.0,0.00014192,2]
[338212230,1726386683964,-150.0,0.00014192,2]
[338212231,1726386683974,-150.0,0.00014192,2]
[338212232,1726386683983,-150.0,0.00014192,2]
[338212233,1726386683993,-150.75,0.00014192,2]
[338212234,1726386684002,-150.0,0.00014192,2]
[338212235,1726386684012,-150.0,0.00014192,2]
[338212236,1726386684022,-185.304872,0.00014194,2]
[338212237,1726386684032,-6006.54725614,0.00014199,2]
[338212238,1726386684041,-2388484.62224388,0.000142,2]
[338212239,1726386684744,-1090623.54864584,0.000142,2]
[338212240,1726386684756,-2933745.3651553,0.000142,2]
[338212241,1726386684766,-346.372401,0.000142,2]
[338212242,1726386684775,-346.372401,0.000142,2]
[338212243,1726386684785,-232.4367,0.000142,2]
[338212244,1726386684794,-232.4367,0.000142,2]
[338212245,1726386684803,-541.1217,0.000142,2]
[338212246,1726386684813,-4952.6987227,0.000142,2]
[338212247,1726386684822,-174.884118,0.000142,2]
[338212248,1726386684832,-2276.1651967,0.000142,2]
[338212249,1726386684842,-151.0,0.000142,2]
[338212250,1726386684852,-461.6542,0.000142,2]
[338212251,1726386684862,-2973.7977749,0.000142,2]
[338212252,1726386684872,-514.6423,0.000142,2]
[338212253,1726386684882,-151.0,0.000142,2]
[338212254,1726386684891,-3630.9703714,0.0001421,2]
[338212255,1726386684902,-606.1993663,0.0001421,2]
[338212256,1726386684911,-17614.0500361,0.0001421,2]
[338212257,1726386684921,-201.0,0.0001422,2]
[338212258,1726386684931,-351.5888283,0.00014247,2]
[338212259,1726386684941,-561.98,0.00014256,2]
[338212260,1726386684951,-500.0,0.00014256,2]
[338212261,1726386684961,-500.0,0.00014256,2]
[338212262,1726386684970,-500.0,0.00014256,2]
[338212263,1726386684979,-1436.51,0.00014256,2]
[338212264,1726386684989,-500.0,0.00014256,2]
[338212265,1726386684999,-928.51,0.00014256,2]
[338212266,1726386685008,-842.4,0.00014256,2]
[338212267,1726386685018,-500.0,0.00014256,2]
[338212268,1726386685027,-1164.17,0.00014256,2]
[338212269,1726386685036,-645.17,0.00014256,2]
[338212270,1726386685045,-500.0,0.00014256,2]
[338212271,1726386685054,-639.18,0.00014256,2]
[338212272,1726386685064,-500.0,0.00014256,2]
[338212273,1726386685073,-591.77,0.00014256,2]
[338212274,1726386685083,-500.0,0.00014256,2]
[338212275,1726386685092,-602.89,0.00014256,2]
[338212276,1726386685101,-1098.11,0.00014256,2]
[338212277,1726386685111,-500.0,0.00014256,2]
[338212278,1726386685120,-715.1,0.00014256,2]
[338212279,1726386685130,-952.96,0.00014256,2]
[338212280,1726386685139,-1104.7,0.00014256,2]
[338212281,1726386685147,-621.97,0.00014256,2]
[338212282,1726386685156,-562.73,0.00014256,2]
[338212283,1726386685166,-500.0,0.00014256,2]
[338212284,1726386685176,-708.31,0.00014256,2]
[338212285,1726386685185,-665.16,0.00014256,2]
[338212286,1726386685195,-311.31673688,0.00014256,2]
[338212287,1726386685204,-500.0,0.00014256,2]
[338212288,1726386685214,-500.0,0.00014256,2]
[338212289,1726386685224,-500.0,0.00014256,2]
[338212290,1726386685235,-1124.15,0.00014256,2]
[338212291,1726386685244,-1571.64,0.00014256,2]
[338212292,1726386685254,-1574.41,0.00014256,2]
[338212293,1726386685264,-600.39,0.00014256,2]
[338212294,1726386685273,-708.84,0.00014256,2]
[338212295,1726386685282,-720.71,0.00014256,2]
[338212296,1726386685292,-500.0,0.00014256,2]
[338212297,1726386685302,-500.0,0.00014256,2]
[338212298,1726386685311,-650.12,0.00014256,2]
[338212299,1726386685320,-426.57130167,0.00014256,2]
[338212300,1726386685331,-152.88555136,0.00014256,2]
[338212301,1726386685340,-1249.23,0.00014256,2]
[338212302,1726386685350,-500.0,0.00014256,2]
[338212303,1726386685359,-500.0,0.00014256,2]
[338212304,1726386685369,-500.0,0.00014256,2]
[338212305,1726386685378,-708.48,0.00014256,2]
[338212306,1726386685387,-802.37,0.00014256,2]
[338212307,1726386685396,-639.47,0.00014256,2]
[338212308,1726386685405,-556.09,0.00014256,2]
[338212309,1726386685414,-500.0,0.00014256,2]
[338212310,1726386685423,-500.0,0.00014256,2]
[338212311,1726386685432,-527.26,0.00014256,2]
[338212312,1726386685442,-500.0,0.00014256,2]
[338212313,1726386685451,-1066.93,0.00014256,2]
[338212314,1726386685461,-646.44,0.00014256,2]
[338212315,1726386685470,-1656.57,0.00014256,2]
[338212316,1726386685484,-763.97,0.00014256,2]
[338212317,1726386685494,-1411.55,0.00014256,2]
[338212318,1726386685504,-500.0,0.00014256,2]
[338212319,1726386685513,-500.0,0.00014256,2]
[338212320,1726386685522,-500.0,0.00014256,2]
[338212321,1726386685532,-550.13,0.00014256,2]
[338212322,1726386685541,-500.0,0.00014256,2]
[338212323,1726386685551,-500.0,0.00014256,2]
[338212324,1726386685560,-546.41,0.00014256,2]
[338212325,1726386685570,-500.0,0.00014256,2]
[338212326,1726386685579,-1742.19,0.00014256,2]
[338212327,1726386685589,-563.77,0.00014256,2]
[338212328,1726386685603,-500.0,0.00014256,2]
[338212329,1726386685612,-500.0,0.00014256,2]
[338212330,1726386685621,-500.0,0.00014256,2]
[338212331,1726386685630,-500.0,0.00014256,2]
[338212332,1726386685640,-500.0,0.00014256,2]
[338212333,1726386685649,-500.0,0.00014256,2]
[338212334,1726386685659,-500.0,0.00014256,2]
[338212335,1726386685668,-175.7222217,0.00014256,2]
[338212336,1726386685678,-574.37,0.00014256,2]
[338212337,1726386685688,-1322.16,0.00014256,2]
[338212338,1726386685697,-1524.68,0.00014256,2]
[338212339,1726386685707,-722.53,0.00014256,2]
[338212340,1726386685716,-1451.07,0.00014256,2]
[338212341,1726386685728,-724.0,0.00014256,2]
[338212342,1726386685737,-1263.3,0.00014256,2]
[338212343,1726386685746,-249.422732,0.00014256,2]
[338212344,1726386685755,-831.32,0.00014256,2]
[338212345,1726386685765,-500.0,0.00014256,2]
[338212346,1726386685774,-1412.73,0.00014256,2]
[338212347,1726386685784,-535.97,0.00014256,2]
[338212348,1726386685793,-762.35,0.00014256,2]
[338212349,1726386685802,-592.82,0.00014256,2]
[338212350,1726386685811,-500.0,0.00014256,2]
[338212351,1726386685821,-150.0,0.00014256,2]
[338212352,1726386685831,-500.0,0.00014256,2]
[338212353,1726386685842,-1356.7,0.00014256,2]
[338212354,1726386685851,-698.9,0.00014256,2]
[338212355,1726386685862,-1023.51,0.00014256,2]
[338212356,1726386685871,-500.0,0.00014256,2]
[338212357,1726386685881,-654.13,0.00014256,2]
[338212358,1726386685890,-500.0,0.00014256,2]
[338212359,1726386685901,-500.0,0.00014256,2]
[338212360,1726386685912,-805.52,0.00014256,2]
[338212361,1726386685922,-500.0,0.00014256,2]
[338212362,1726386685931,-500.0,0.00014256,2]
[338212363,1726386685941,-545.85,0.00014256,2]
[338212364,1726386685950,-500.0,0.00014256,2]
[338212365,1726386685960,-995.8,0.00014256,2]
[338212366,1726386685969,-1242.26,0.00014256,2]
[338212367,1726386685978,-201.0,0.0001427,2]
[338212368,1726386685987,-158.4900986,0.0001429,2]
[338212369,1726386685997,-201.0,0.0001429,2]
[338212370,1726386686006,-1000.0,0.000143,2]
[338212371,1726386686017,-152.0,0.00014345,5]
[338212372,1726386686027,-201.0,0.0001435,2]
[338212373,1726386686036,-1859.58,0.00014356,2]
[338212374,1726386686045,-1143.63,0.00014356,2]
[338212375,1726386686055,-3037.41,0.00014356,2]
[338212376,1726386686064,-2304.04,0.00014356,2]
[338212377,1726386686073,-3196.08,0.00014356,2]
[338212378,1726386686082,-752.52,0.00014356,2]
[338212379,1726386686091,-500.0,0.00014356,2]
[338212380,1726386686100,-5529.83,0.00014356,2]
[338212381,1726386686110,-22864.29,0.00014356,2]
[338212382,1726386686119,-4100.35,0.00014356,2]
[338212383,1726386686128,-535.73,0.00014356,2]
[338212384,1726386686137,-9326.93,0.00014356,2]
[338212385,1726386686146,-1699.66,0.00014356,2]
[338212386,1726386686156,-818.44,0.00014356,2]
[338212387,1726386686167,-2372.87,0.00014356,2]
[338212388,1726386686176,-1736.72,0.00014356,2]
[338212389,1726386686186,-3142.64,0.00014356,2]
[338212390,1726386686195,-2320.73,0.00014356,2]
[338212391,1726386686204,-6843.53786354,0.00014361,2]
[338212392,1726386686221,-500.0,0.00014361,2]
[338212393,1726386686230,-4791.36,0.00014384,2]
[338212394,1726386686240,-799.8901086,0.00014384,2]
[338212395,1726386686249,-242.84,0.00014384,2]
[338212396,1726386686259,-1000.0,0.000144,5]
[338212397,1726386686268,-4423.3861619,0.00014418,2]
[338212398,1726386686277,-737.2250827,0.00014418,2]
[338212399,1726386686287,-21421.2026872,0.00014418,2]
[338212400,1726386686296,-4276.6781856,0.00014418,2]
[338212401,1726386686305,-1968.0982702,0.00014418,2]
[338212402,1726386686315,-2571.309967,0.00014418,2]
[338212403,1726386686324,-201.0,0.0001442,2]
[338212404,1726386686333,-2113.01,0.00014426,2]
[338212405,1726386686342,-2238.96,0.00014426,2]
[338212406,1726386686352,-2019.7,0.00014426,2]
[338212407,1726386686361,-586.83,0.00014426,2]
[338212408,1726386686371,-3124.91,0.00014426,2]
[338212409,1726386686380,-968.98,0.00014426,2]
[338212410,1726386686390,-2456.08,0.00014426,2]
[338212411,1726386686400,-1949.11,0.00014426,2]
[338212412,1726386686410,-1848.91,0.00014426,2]
[338212413,1726386686419,-7557.05,0.00014426,2]
[338212414,1726386686429,-3493.4,0.00014426,2]
[338212415,1726386686439,-2992.82,0.00014426,2]
[338212416,1726386686449,-1981.17,0.00014426,2]
[338212417,1726386686460,-2109.44,0.00014426,2]
[338212418,1726386686470,-1429.35,0.00014426,2]
[338212419,1726386686480,-1380.26,0.00014426,2]
[338212420,1726386686490,-807.33,0.00014426,2]
[338212421,1726386686501,-565.35055749,0.00014426,2]
[338212422,1726386686520,-819.5,0.00012782,2]
[338212423,1726386686530,-107.89944251,0.00014426,2]
[338212424,1726386686540,-353.40055768,0.00014426,2]
[338212425,1726386686555,-561.82928208,0.00014426,2]
[338212426,1726386686567,-541.14016024,0.00014426,2]
[338212427,1726386686576,-927.79,0.00014426,2]
[338212428,1726386686586,-731.10334902,0.00014426,2]
[338212429,1726386687059,-1065.9793395,0.00012783,2]
[338212430,1726386687140,-1426.6606605,0.00012783,2]
[338212431,1726386687150,-819.5,0.00013056,2]
[338212432,1726386687159,-2109.15172829,0.00013057,2]
[338212433,1726386687171,-298.57312534,0.00013057,2]
[338212434,1726386687183,-84.91514637,0.00013057,2]
[338212435,1726386687192,-171.98378637,0.0001333,2]
[338212436,1726386687216,-647.51621363,0.0001333,2]
[338212437,1726386687226,-842.96539268,0.00013331,2]
[338212438,1726386687237,-1649.67460732,0.00013331,2]
[338212439,1726386687246,-1080.0,0.00013533,2]
[338212440,1726386687256,-819.5,0.00013604,2]
[338212441,1726386687266,-2492.64,0.00013605,2]
[338212442,1726386687276,-819.5,0.00013878,2]
[338212443,1726386687286,-2492.64,0.00013879,2]
[338212444,1726386687295,-2492.64,0.00014153,2]
[338212445,1726386687305,-352.89665098,0.00014426,2]
[338212446,1726386687314,-1156.39,0.00014426,2]
[338212447,1726386687324,-1829.98,0.00014427,2]
[338212448,1726386687334,-1618.9,0.00014427,2]
[338212449,1726386687344,-2412.16,0.00014427,2]
[338212450,1726386687353,-902.27,0.00014427,2]
[338212451,1726386687363,-1114.81,0.00014427,2]
[338212452,1726386687373,-590.87,0.00014427,2]
[338212453,1726386687383,-1291.36,0.00014427,2]
[338212454,1726386687392,-1805.22,0.00014427,2]
[338212455,1726386687402,-3078.06,0.00014427,2]
[338212456,1726386687411,-1393.41,0.00014427,2]
[338212457,1726386687422,-619.5,0.00014427,2]
[338212458,1726386687431,-1836.24,0.00014427,2]
[338212459,1726386687440,-500.0,0.00014427,2]
[338212460,1726386687450,-1437.52,0.00014427,2]
[338212461,1726386687460,-748.26,0.00014427,2]
[338212462,1726386687470,-1080.77,0.00014427,2]
[338212463,1726386687480,-515.37,0.00014427,2]
[338212464,1726386687489,-752.33,0.00014427,2]
[338212465,1726386687499,-618.21,0.00014427,2]
[338212466,1726386687509,-579.73,0.00014427,2]
[338212467,1726386687520,-1002.53,0.00014427,2]
[338212468,1726386687531,-515.5,0.00014427,2]
[338212469,1726386687541,-1779.54,0.00014427,2]
[338212470,1726386687550,-651.76,0.00014427,2]
[338212471,1726386687559,-1776.68,0.00014427,2]
[338212472,1726386687568,-500.0,0.00014427,2]
[338212473,1726386687578,-500.0,0.00014427,2]
[338212474,1726386687587,-2137.83,0.00014427,2]
[338212475,1726386687600,-2288.36,0.00014427,2]
[338212476,1726386687609,-1091.66,0.00014427,2]
[338212477,1726386687618,-1983.39,0.00014427,2]
[338212478,1726386687627,-500.0,0.00014427,2]
[338212479,1726386687636,-589.98,0.00014427,2]
[338212480,1726386687646,-500.0,0.00014427,2]
[338212481,1726386687655,-500.0,0.00014427,2]
[338212482,1726386687664,-646.3,0.00014427,2]
[338212483,1726386687674,-1741.77,0.00014427,2]
[338212484,1726386687683,-938.18,0.00014427,2]
[338212485,1726386687693,-528.66,0.00014427,2]
[338212486,1726386687702,-1133.43,0.00014427,2]
[338212487,1726386687712,-1044.98,0.00014427,2]
[338212488,1726386687722,-2653.92,0.00014427,2]
[338212489,1726386687731,-2096.53,0.00014427,2]
[338212490,1726386687741,-1005.33,0.00014427,2]
[338212491,1726386687750,-1243.03,0.00014427,2]
[338212492,1726386687759,-1748.44,0.00014427,2]
[338212493,1726386687768,-1177.2,0.00014427,2]
[338212494,1726386687778,-731.09,0.00014427,2]
[338212495,1726386687787,-1761.9,0.00014427,2]
[338212496,1726386687796,-1713.17,0.00014427,2]
[338212497,1726386687806,-500.0,0.00014427,2]
[338212498,1726386687816,-1492.55,0.00014427,2]
[338212499,1726386687826,-653.79,0.00014427,2]
[338212500,1726386687835,-906.63,0.00014427,2]
[338212501,1726386687844,-1834.83,0.00014427,2]
[338212502,1726386687854,-500.0,0.00014427,2]
[338212503,1726386687863,-13578.70861047,0.00014427,2]
[338212504,1726386687876,-14402.19677375,0.00014427,2]
[338212505,1726386687887,-3561.81141709,0.00014427,2]
[338212506,1726386687907,-819.5,0.00014152,2]
[338212507,1726386687916,-6150.13319869,0.00014427,2]
[338212508,1726386687926,-783.83,0.00014427,2]
[338212509,1726386687935,-1233.5,0.00014427,2]
[338212510,1726386687944,-216.15638845,0.00014427,2]
[338212511,1726386687955,-283.84361155,0.00014427,2]
[338212512,1726386687965,-1026.37,0.00014427,2]
[338212513,1726386687975,-788.62394462,0.00014427,2]
[338212514,1726386687988,-388.52572766,0.00014427,2]
[338212515,1726386688001,-1567.00032772,0.00014427,2]
[338212516,1726386688013,-1366.5619293,0.00014427,2]
[338212517,1726386688025,-929.9080707,0.00014427,2]
[338212518,1726386688035,-500.0,0.00014427,2]
[338212519,1726386688044,-793.21,0.00014427,2]
[338212520,1726386688053,-528.17,0.00014427,2]
[338212521,1726386688063,-731.12,0.00014427,2]
[338212522,1726386688074,-3505.49,0.00014427,2]
[338212523,1726386688084,-1451.47,0.00014427,2]
[338212524,1726386688093,-1113.36,0.00014427,2]
[338212525,1726386688102,-1469.02,0.00014427,2]
[338212526,1726386688111,-5674.86,0.00014427,2]
[338212527,1726386688121,-1123.21,0.00014427,2]
[338212528,1726386688130,-1895.66,0.00014427,2]
[338212529,1726386688140,-5018.61942586,0.00014427,2]
[338212530,1726386688151,-670.7,0.00014427,2]
[338212531,1726386688170,-617.54057414,0.00014427,2]
[338212532,1726386688179,-500.0,0.00014427,2]
[338212533,1726386688189,-500.0,0.00014427,2]
[338212534,1726386688199,-941.47,0.00014427,2]
[338212535,1726386688209,-687.97,0.00014427,2]
[338212536,1726386688218,-1613.22,0.00014427,2]
[338212537,1726386688228,-1288.28,0.00014427,2]
[338212538,1726386688238,-1324.08,0.00014427,2]
[338212539,1726386688248,-500.0,0.00014427,2]
[338212540,1726386688257,-731.82577602,0.00014427,2]
[338212541,1726386688269,-23.25422398,0.00014427,2]
[338212542,1726386688279,-2206.36,0.00014427,2]
[338212543,1726386688289,-1781.23886002,0.00014427,2]
[338212544,1726386688301,-533.1,0.00014427,2]
[338212545,1726386688312,-2939.45113998,0.00014427,2]
[338212546,1726386688322,-5.93898649,0.00014427,2]
[338212547,1726386688334,-312.3160075,0.00014427,2]
[338212548,1726386688351,-315.64500601,0.00014427,2]
[338212549,1726386688360,-159.57017225,0.00014427,2]
[338212550,1726386688372,-340.42982775,0.00014427,2]
[338212551,1726386688382,-193.78872768,0.00014427,2]
[338212552,1726386688407,-593.84347609,0.00014427,2]
[338212553,1726386766265,250.0,0.00012624,2]
[338212554,1726386766449,1050.0,0.00011,2]
[338212555,1726386807942,880.0,0.00012563,2]
[338212556,1726386968164,319.57,0.00010602,2]
[338212557,1726387076025,150.87,0.00012489,2]
[338212558,1726387257507,250.0,0.00012638,2]
[338212559,1726387262412,218.5,0.00010959,2]
[338212560,1726387288446,1000.0,0.00013,30]
[338212561,1726387295973,1000.0,0.0001,30]
[338212562,1726387328755,1000.0,0.00012,30]
[338212563,1726387441919,303.59,0.00010693,2]
[338212564,1726387459396,184.03,0.00012568,2]
[338212565,1726387509273,-150.0,0.00012641,2]
[338212566,1726387540853,11509.0,0.000101,5]
[338212575,1726387767130,-146.0,0.00012641,2]
[338212576,1726387805070,164.46,0.00012637,2]
[338212580,1726387831944,-454.22394535,0.00012647,2]
[338212581,1726387832051,-483.74605465,0.00012647,2]
[338212582,1726387832060,-115.71394543,0.00012658,2]
[338212583,1726387832157,-134.28605457,0.00012658,2]
[338212584,1726387832167,-150.87,0.00012709,2]
[338212585,1726387832176,-240.17,0.0001274,2]
[338212586,1726387832185,-4770.12991462,0.00012957,2]
[338212587,1726387832195,-303.59,0.00012957,2]
[338212588,1726387832204,-150.0,0.00012957,2]
[338212589,1726387832213,-953.68,0.00013,2]
[338212590,1726387832223,-499.99,0.00013057,2]
[338212591,1726387832232,-763.2,0.00013203,2]
[338212592,1726387832241,-150.0,0.000134,2]
[338212593,1726387832255,-300.0,0.00013499,2]
[338212594,1726387832265,-304.78,0.000135,2]
[338212595,1726387832275,-1002.88,0.000135,2]
[338212596,1726387832284,-1894.605,0.00013587,2]
[338212597,1726387832294,-553.0,0.00013587,2]
[338212598,1726387832303,-545.99363049,0.00013587,2]
[338212599,1726387833127,150.0,0.00010959,2]
[338212600,1726387833150,86.22,0.00010959,2]
[338212603,1726387838063,-2799.00636951,0.00013587,2]
[338212604,1726387838073,-248.0,0.00013587,2]
[338212605,1726387838082,-545.138,0.00013587,2]
[338212606,1726387838091,-1124.0,0.00013587,2]
[338212607,1726387838101,-150.0,0.00013588,2]
[338212608,1726387838112,-1073.0,0.00013588,2]
[338212609,1726387838121,-624.0,0.00013622,2]
[338212610,1726387838130,-1261.0,0.00013622,2]
[338212611,1726387838139,-558.0,0.00013622,2]
[338212612,1726387838149,-932.0,0.00013622,2]
[338212613,1726387838158,-494.39003841,0.00013622,2]
[338212614,1726387838170,-315.60996159,0.00013622,2]
[338212615,1726387838179,-3020.52,0.00013699,2]
[338212616,1726387838188,-2751.0,0.00013699,2]
[338212617,1726387838198,-200.0,0.00013699,2]
[338212618,1726387838207,-500.0,0.00013699,2]
[338212619,1726387838220,-152.0,0.00013756,3]
[338212620,1726387838229,-150.0,0.000138,2]
[338212621,1726387838238,-201.208972,0.00013973,2]
[338212622,1726387838249,-145.77507788,0.00013995,2]
[338212623,1726387838260,-854.22492212,0.00013995,2]
[338212624,1726387838270,-1000.0,0.00013995,2]
[338212625,1726387838279,-1000.0,0.00013995,2]
[338212626,1726387838288,-1000.0,0.00013995,2]
[338212627,1726387838297,-1000.0,0.00013995,2]
[338212628,1726387838307,-382.53002748,0.00013995,2]
[338212629,1726387838316,-900.0,0.00014,2]
[338212630,1726387838325,-1196.7,0.00014,2]
[338212631,1726387838335,-150.0,0.00014,5]
[338212632,1726387838345,-461.0,0.00014,2]
[338212633,1726387838355,-514.6,0.00014,2]
[338212634,1726387838364,-1000.0,0.00014,30]
[338212635,1726387838374,-625.0,0.00014001,2]
[338212636,1726387838384,-1000.0,0.00014004,2]
[338212638,1726387838393,-1000.0,0.00014004,2]
[338212640,1726387838402,-1000.0,0.00014004,2]
[338212642,1726387838412,-480.9450504,0.00014004,2]
[338212644,1726387838423,-519.0549496,0.00014004,2]
[338212645,1726387838439,-1000.0,0.00014004,2]
[338212646,1726387838448,-1000.0,0.00014004,2]
[338212647,1726387838457,-1000.0,0.00014004,2]
[338212648,1726387838469,-1000.0,0.00014004,2]
[338212649,1726387838478,-1000.0,0.00014004,2]
[338212650,1726387838488,-1000.0,0.00014004,2]
[338212652,1726387838497,-1000.0,0.00014004,2]
[338212653,1726387838507,-1000.0,0.00014004,2]
[338212654,1726387838517,-1000.0,0.00014004,2]
[338212655,1726387838526,-1000.0,0.00014004,2]
[338212656,1726387838535,-1000.0,0.00014004,2]
[338212657,1726387838545,-283.626,0.00014019,2]
[338212658,1726387838555,-152.0,0.00014093,4]
[338212660,1726387838564,-374.99975324,0.0001414,2]
[338212662,1726387838574,-150.0,0.00014155,2]
[338212663,1726387838583,-150.0,0.00014155,2]
[338212664,1726387838592,-150.0,0.00014164,2]
[338212665,1726387838602,-150.0,0.00014166,2]
[338212666,1726387838612,-150.0,0.0001417,2]
[338212667,1726387838621,-150.0,0.00014174,2]
[338212668,1726387838631,-150.0,0.00014175,2]
[338212669,1726387838640,-150.0,0.00014175,2]
[338212670,1726387838650,-150.0,0.00014176,2]
[338212671,1726387838660,-150.0,0.00014177,2]
[338212672,1726387838669,-150.0,0.00014184,2]
[338212673,1726387838678,-150.0,0.00014186,2]
[338212674,1726387838688,-150.0,0.00014188,2]
[338212675,1726387838698,-150.0,0.00014191,2]
[338212676,1726387838708,-150.0,0.00014191,2]
[338212677,1726387838723,-150.0,0.00014191,2]
[338212678,1726387838734,-300.0,0.00014192,2]
[338212679,1726387838743,-444.24,0.00014192,2]
[338212680,1726387838754,-150.0,0.00014192,2]
[338212681,1726387838764,-150.0,0.00014192,2]
[338212682,1726387838773,-150.0,0.00014192,2]
[338212683,1726387838782,-150.0,0.00014192,2]
[338212684,1726387838791,-150.0,0.00014192,2]
[338212685,1726387838801,-300.0,0.00014192,2]
[338212686,1726387838810,-150.0,0.00014192,2]
[338212687,1726387838819,-150.0,0.00014193,2]
[338212688,1726387838828,-150.0,0.00014197,2]
[338212689,1726387838838,-150.0,0.000142,2]
[338212690,1726387838847,-150.0,0.000142,2]
[338212691,1726387838856,-150.0,0.00014203,2]
[338212692,1726387838866,-150.0,0.00014203,2]
[338212693,1726387838875,-150.0,0.00014207,2]
[338212694,1726387838884,-150.0,0.00014209,2]
[338212695,1726387838894,-150.0,0.00014214,2]
[338212696,1726387838903,-150.0,0.00014215,2]